[Event "Titled Tuesday Blitz January 31 Early 2023"]
[White "Predke, Alexandr"]
[Black "Acor, Corey"]
[WhiteFideId "24107581"]
[BlackFideId "2024861"]
[WhiteElo "2685"]
[BlackElo "2216"]
[Result "1-0"]
[Round "06"]
[TimeControl "180+2"]
[Date "2023.01.31"]
[WhiteClock "0:00:28"]
[BlackClock "0:00:14"]

1. e4 {[%clk 0:03:00]}  e5 {[%clk 0:02:43]} 2. Nf3 {[%clk 0:02:44]}  Nc6 {[%clk 0:02:41]} 3. Bb5 {[%clk 0:02:43]}  Nge7 {[%clk 0:02:40]} 4. h4 {[%clk 0:02:35]}  h6 {[%clk 0:02:27]} 5. h5 {[%clk 0:02:31]}  Ng8 {[%clk 0:02:27]} 6. Bxc6 {[%clk 0:02:02]}  dxc6 {[%clk 0:02:19]} 7. d4 {[%clk 0:02:02]}  exd4 {[%clk 0:02:17]} 8. Qxd4 {[%clk 0:02:03]}  Bg4 {[%clk 0:02:14]} 9. Qe5+ {[%clk 0:01:39]}  Qe7 {[%clk 0:02:03]} 10. Nc3 {[%clk 0:01:32]}  Bxf3 {[%clk 0:01:59]} 11. Qxe7+ {[%clk 0:01:32]}  Bxe7 {[%clk 0:01:52]} 12. gxf3 {[%clk 0:01:32]}  Nf6 {[%clk 0:01:51]} 13. a3 {[%clk 0:01:18]}  O-O-O {[%clk 0:01:50]} 14. Be3 {[%clk 0:01:19]}  b6 {[%clk 0:01:41]} 15. Ke2 {[%clk 0:01:18]}  Rhe8 {[%clk 0:01:38]} 16. f4 {[%clk 0:01:13]}  Ng4 {[%clk 0:01:29]} 17. Rag1 {[%clk 0:01:12]}  Nxe3 {[%clk 0:01:29]} 18. fxe3 {[%clk 0:01:13]}  Bf6 {[%clk 0:01:29]} 19. e5 {[%clk 0:01:13]}  Be7 {[%clk 0:01:21]} 20. Rxg7 {[%clk 0:01:13]}  f6 {[%clk 0:01:22]} 21. e6 {[%clk 0:01:10]}  f5 {[%clk 0:01:19]} 22. Rg6 {[%clk 0:01:03]}  Bf8 {[%clk 0:01:06]} 23. e4 {[%clk 0:01:01]}  fxe4 {[%clk 0:01:02]} 24. f5 {[%clk 0:01:02]}  Bd6 {[%clk 0:00:46]} 25. Nxe4 {[%clk 0:00:52]}  Be5 {[%clk 0:00:38]} 26. c3 {[%clk 0:00:50]}  Rd5 {[%clk 0:00:34]} 27. Rf1 {[%clk 0:00:47]}  Bd6 {[%clk 0:00:27]} 28. Nxd6+ {[%clk 0:00:38]}  Rxd6 {[%clk 0:00:22]} 29. Rxh6 {[%clk 0:00:36]}  Red8 {[%clk 0:00:19]} 30. Ke3 {[%clk 0:00:35]}  Rd2 {[%clk 0:00:17]} 31. e7 {[%clk 0:00:28]}  R8d3+ {[%clk 0:00:14]} 32. Ke4 {[%clk 0:00:28]} 1-0


[Site "https://www.chess.com"]

[Event "Titled Tuesday Blitz January 31 Early 2023"]
[White "Grandelius, Nils"]
[Black "Postny, Evgeny"]
[WhiteFideId "1710400"]
[BlackFideId "2804344"]
[WhiteElo "2664"]
[BlackElo "2549"]
[Result "0-1"]
[Round "06"]
[TimeControl "180+2"]
[Date "2023.01.31"]
[WhiteClock "0:00:07"]
[BlackClock "0:00:02"]

1. c4 {[%clk 0:02:56]}  c6 {[%clk 0:02:57]} 2. Nc3 {[%clk 0:02:54]}  d5 {[%clk 0:02:58]} 3. e3 {[%clk 0:02:55]}  Nf6 {[%clk 0:02:58]} 4. Nf3 {[%clk 0:02:55]}  Bg4 {[%clk 0:02:58]} 5. cxd5 {[%clk 0:02:55]}  Bxf3 {[%clk 0:02:58]} 6. Qxf3 {[%clk 0:02:52]}  cxd5 {[%clk 0:02:58]} 7. d4 {[%clk 0:02:49]}  Nc6 {[%clk 0:02:57]} 8. Bd3 {[%clk 0:02:49]}  e6 {[%clk 0:02:57]} 9. O-O {[%clk 0:02:50]}  Bd6 {[%clk 0:02:57]} 10. Bd2 {[%clk 0:02:46]}  O-O {[%clk 0:02:54]} 11. Qh3 {[%clk 0:02:46]}  g6 {[%clk 0:02:51]} 12. Rac1 {[%clk 0:02:45]}  Rc8 {[%clk 0:02:48]} 13. Qf3 {[%clk 0:02:44]}  a6 {[%clk 0:02:30]} 14. Rfd1 {[%clk 0:02:43]}  Bb8 {[%clk 0:02:24]} 15. g3 {[%clk 0:02:41]}  Re8 {[%clk 0:02:23]} 16. Be1 {[%clk 0:02:40]}  Kg7 {[%clk 0:02:14]} 17. Na4 {[%clk 0:02:36]}  Nd7 {[%clk 0:02:07]} 18. Qe2 {[%clk 0:02:29]}  Bd6 {[%clk 0:02:00]} 19. a3 {[%clk 0:02:26]}  Qe7 {[%clk 0:01:52]} 20. b4 {[%clk 0:02:21]}  h5 {[%clk 0:01:46]} 21. Nc5 {[%clk 0:02:18]}  Nf6 {[%clk 0:01:42]} 22. Nxb7 {[%clk 0:01:59]}  Qxb7 {[%clk 0:01:43]} 23. Bxa6 {[%clk 0:02:00]}  Qb8 {[%clk 0:01:33]} 24. Bxc8 {[%clk 0:01:57]}  Rxc8 {[%clk 0:01:34]} 25. Qa6 {[%clk 0:01:54]}  Ne7 {[%clk 0:01:27]} 26. Rxc8 {[%clk 0:01:52]}  Nxc8 {[%clk 0:01:28]} 27. Rc1 {[%clk 0:01:48]}  Nb6 {[%clk 0:01:02]} 28. Rc6 {[%clk 0:01:47]}  Bc7 {[%clk 0:00:56]} 29. a4 {[%clk 0:01:46]}  Nc4 {[%clk 0:00:56]} 30. a5 {[%clk 0:01:36]}  h4 {[%clk 0:00:43]} 31. b5 {[%clk 0:01:15]}  hxg3 {[%clk 0:00:42]} 32. hxg3 {[%clk 0:01:15]}  Ng4 {[%clk 0:00:27]} 33. Rxe6 {[%clk 0:00:31]}  Qh8 {[%clk 0:00:18]} 34. Qb7 {[%clk 0:00:20]}  Qh2+ {[%clk 0:00:11]} 35. Kf1 {[%clk 0:00:20]}  Bxg3 {[%clk 0:00:10]} 36. Re7 {[%clk 0:00:17]}  Ncxe3+ {[%clk 0:00:05]} 37. Ke2 {[%clk 0:00:17]}  Nf5 {[%clk 0:00:04]} 38. Rxf7+ {[%clk 0:00:16]}  Kg8 {[%clk 0:00:04]} 39. Qxd5 {[%clk 0:00:08]}  Nxd4+ {[%clk 0:00:02]} 40. Kd1 {[%clk 0:00:05]}  Ne3+ {[%clk 0:00:02]} 41. Kc1 {[%clk 0:00:03]}  Ne2+ {[%clk 0:00:01]} 42. Kb1 {[%clk 0:00:04]}  Nxd5 {[%clk 0:00:01]} 43. Rd7 {[%clk 0:00:04]}  Nec3+ {[%clk 0:00:01]} 44. Kc2 {[%clk 0:00:03]}  Bd6 {[%clk 0:00:02]} 45. Rd8+ {[%clk 0:00:04]}  Kf7 {[%clk 0:00:02]} 46. Bxc3 {[%clk 0:00:04]}  Nxc3 {[%clk 0:00:02]} 47. Kxc3 {[%clk 0:00:04]}  Qxf2 {[%clk 0:00:02]} 48. Rxd6 {[%clk 0:00:04]}  Qc5+ {[%clk 0:00:02]} 49. Kb3 {[%clk 0:00:04]}  Qxd6 {[%clk 0:00:03]} 50. a6 {[%clk 0:00:05]}  Qb6 {[%clk 0:00:03]} 51. Kb4 {[%clk 0:00:06]}  Ke6 {[%clk 0:00:04]} 52. Kc4 {[%clk 0:00:07]}  Qa7 {[%clk 0:00:02]} 0-1


[Site "https://www.chess.com"]

[Event "Titled Tuesday Blitz January 31 Early 2023"]
[White "Shipov, Sergei"]
[Black "Moroni, Luca Jr"]
[WhiteFideId "4113624"]
[BlackFideId "865834"]
[WhiteElo "2541"]
[BlackElo "2535"]
[Result "0-1"]
[Round "06"]
[TimeControl "180+2"]
[Date "2023.01.31"]
[WhiteClock "0:00:02"]
[BlackClock "0:00:07"]

1. d4 {[%clk 0:03:00]}  g6 {[%clk 0:02:59]} 2. c4 {[%clk 0:03:00]}  Bg7 {[%clk 0:02:59]} 3. e4 {[%clk 0:03:01]}  d6 {[%clk 0:03:00]} 4. Nf3 {[%clk 0:02:55]}  Bg4 {[%clk 0:02:58]} 5. Be2 {[%clk 0:02:55]}  Bxf3 {[%clk 0:02:55]} 6. Bxf3 {[%clk 0:02:55]}  Nc6 {[%clk 0:02:56]} 7. d5 {[%clk 0:02:38]}  Nd4 {[%clk 0:02:55]} 8. O-O {[%clk 0:02:38]}  Nxf3+ {[%clk 0:02:39]} 9. Qxf3 {[%clk 0:02:37]}  Nf6 {[%clk 0:02:40]} 10. Nc3 {[%clk 0:02:33]}  Nd7 {[%clk 0:02:37]} 11. Bg5 {[%clk 0:02:30]}  c6 {[%clk 0:02:32]} 12. Rfe1 {[%clk 0:02:29]}  O-O {[%clk 0:02:30]} 13. Rac1 {[%clk 0:02:14]}  Rc8 {[%clk 0:02:29]} 14. b3 {[%clk 0:02:14]}  a6 {[%clk 0:02:26]} 15. h3 {[%clk 0:02:11]}  h6 {[%clk 0:02:25]} 16. Bh4 {[%clk 0:02:10]}  Re8 {[%clk 0:02:14]} 17. Qe3 {[%clk 0:01:52]}  Qa5 {[%clk 0:02:10]} 18. dxc6 {[%clk 0:01:36]}  bxc6 {[%clk 0:02:10]} 19. Na4 {[%clk 0:01:35]}  c5 {[%clk 0:01:44]} 20. Red1 {[%clk 0:01:30]}  Ne5 {[%clk 0:01:40]} 21. f4 {[%clk 0:01:01]}  Nc6 {[%clk 0:01:39]} 22. e5 {[%clk 0:01:01]}  Nd4 {[%clk 0:00:58]} 23. Bf2 {[%clk 0:00:38]}  Qc7 {[%clk 0:00:49]} 24. Re1 {[%clk 0:00:35]}  Rcd8 {[%clk 0:00:46]} 25. Kh1 {[%clk 0:00:26]}  e6 {[%clk 0:00:38]} 26. Qe4 {[%clk 0:00:15]}  Rd7 {[%clk 0:00:26]} 27. g4 {[%clk 0:00:14]}  Red8 {[%clk 0:00:24]} 28. Kg2 {[%clk 0:00:13]}  g5 {[%clk 0:00:20]} 29. exd6 {[%clk 0:00:10]}  Qxd6 {[%clk 0:00:18]} 30. Bg3 {[%clk 0:00:10]}  Qe7 {[%clk 0:00:16]} 31. f5 {[%clk 0:00:10]}  Qf8 {[%clk 0:00:11]} 32. fxe6 {[%clk 0:00:07]}  Nxe6 {[%clk 0:00:11]} 33. Re2 {[%clk 0:00:06]}  Rd3 {[%clk 0:00:11]} 34. Rf1 {[%clk 0:00:05]}  Qe7 {[%clk 0:00:08]} 35. Ref2 {[%clk 0:00:02]}  Rd2 {[%clk 0:00:07]} 0-1


[Site "https://www.chess.com"]

[Event "Titled Tuesday Blitz January 31 Early 2023"]
[White "Kamsky, Gata"]
[Black "Nouri, Alekhine"]
[WhiteFideId "2000024"]
[BlackFideId "5216184"]
[WhiteElo "2665"]
[BlackElo "2257"]
[Result "1/2-1/2"]
[Round "06"]
[TimeControl "180+2"]
[Date "2023.01.31"]
[WhiteClock "0:00:07"]
[BlackClock "0:00:07"]

1. e4 {[%clk 0:03:00]}  c5 {[%clk 0:03:00]} 2. Nf3 {[%clk 0:02:59]}  d6 {[%clk 0:03:00]} 3. d4 {[%clk 0:02:58]}  cxd4 {[%clk 0:03:00]} 4. Nxd4 {[%clk 0:02:58]}  Nf6 {[%clk 0:03:01]} 5. Nc3 {[%clk 0:02:57]}  a6 {[%clk 0:03:01]} 6. a4 {[%clk 0:02:56]}  e5 {[%clk 0:03:01]} 7. Nf3 {[%clk 0:02:54]}  Be7 {[%clk 0:03:00]} 8. Bc4 {[%clk 0:02:54]}  Be6 {[%clk 0:02:59]} 9. Qe2 {[%clk 0:02:53]}  O-O {[%clk 0:02:49]} 10. O-O {[%clk 0:02:50]}  Qc8 {[%clk 0:02:37]} 11. Bb3 {[%clk 0:02:49]}  Bxb3 {[%clk 0:02:35]} 12. cxb3 {[%clk 0:02:48]}  Nbd7 {[%clk 0:02:36]} 13. Bg5 {[%clk 0:02:40]}  h6 {[%clk 0:02:35]} 14. Bxf6 {[%clk 0:02:38]}  Nxf6 {[%clk 0:02:36]} 15. Nd2 {[%clk 0:02:30]}  Qe6 {[%clk 0:02:33]} 16. Nc4 {[%clk 0:02:29]}  Rac8 {[%clk 0:02:32]} 17. Rfd1 {[%clk 0:02:19]}  Rc5 {[%clk 0:02:30]} 18. Ne3 {[%clk 0:02:13]}  Qxb3 {[%clk 0:02:24]} 19. Rd3 {[%clk 0:01:42]}  Qe6 {[%clk 0:02:22]} 20. b4 {[%clk 0:01:35]}  Rcc8 {[%clk 0:02:12]} 21. Ned5 {[%clk 0:01:31]}  Nxd5 {[%clk 0:02:12]} 22. Nxd5 {[%clk 0:01:30]}  Bg5 {[%clk 0:02:12]} 23. g3 {[%clk 0:01:29]}  Rc6 {[%clk 0:01:34]} 24. h4 {[%clk 0:01:27]}  Be7 {[%clk 0:01:33]} 25. b5 {[%clk 0:01:21]}  axb5 {[%clk 0:01:33]} 26. axb5 {[%clk 0:01:21]}  Rc5 {[%clk 0:01:33]} 27. Rc3 {[%clk 0:01:12]}  Rfc8 {[%clk 0:01:22]} 28. Rxc5 {[%clk 0:01:11]}  Rxc5 {[%clk 0:01:23]} 29. Kg2 {[%clk 0:01:03]}  Bd8 {[%clk 0:01:15]} 30. Ra8 {[%clk 0:00:59]}  Rc8 {[%clk 0:01:15]} 31. Ra7 {[%clk 0:00:59]}  Qd7 {[%clk 0:01:12]} 32. Qd3 {[%clk 0:00:50]}  Rc5 {[%clk 0:01:11]} 33. Ra8 {[%clk 0:00:49]}  Kh7 {[%clk 0:01:08]} 34. b6 {[%clk 0:00:37]}  Bxh4 {[%clk 0:00:48]} 35. Ra1 {[%clk 0:00:14]}  Bd8 {[%clk 0:00:46]} 36. Qf3 {[%clk 0:00:12]}  Qe6 {[%clk 0:00:35]} 37. Ra7 {[%clk 0:00:11]}  f5 {[%clk 0:00:34]} 38. Rxb7 {[%clk 0:00:11]}  fxe4 {[%clk 0:00:17]} 39. Qxe4+ {[%clk 0:00:11]}  Qg6 {[%clk 0:00:17]} 40. Qxg6+ {[%clk 0:00:11]}  Kxg6 {[%clk 0:00:18]} 41. Rd7 {[%clk 0:00:10]}  Rxd5 {[%clk 0:00:11]} 42. Rxd8 {[%clk 0:00:11]}  Rb5 {[%clk 0:00:12]} 43. Rxd6+ {[%clk 0:00:11]}  Kf5 {[%clk 0:00:13]} 44. f3 {[%clk 0:00:10]}  h5 {[%clk 0:00:12]} 45. Kf2 {[%clk 0:00:11]}  Rb3 {[%clk 0:00:12]} 46. Kg2 {[%clk 0:00:11]}  g5 {[%clk 0:00:12]} 47. Kf2 {[%clk 0:00:11]}  g4 {[%clk 0:00:08]} 48. fxg4+ {[%clk 0:00:11]}  hxg4 {[%clk 0:00:09]} 49. Kg2 {[%clk 0:00:11]}  Ke4 {[%clk 0:00:08]} 50. Rf6 {[%clk 0:00:09]}  Rb2+ {[%clk 0:00:08]} 51. Kg1 {[%clk 0:00:09]}  Ke3 {[%clk 0:00:08]} 52. Kf1 {[%clk 0:00:08]}  e4 {[%clk 0:00:08]} 53. Kg1 {[%clk 0:00:07]}  Rb1+ {[%clk 0:00:06]} 54. Kg2 {[%clk 0:00:07]}  Rb2+ {[%clk 0:00:06]} 55. Kg1 {[%clk 0:00:07]}  Kd4 {[%clk 0:00:06]} 56. Rf4 {[%clk 0:00:06]}  Rxb6 {[%clk 0:00:05]} 57. Rxg4 {[%clk 0:00:07]}  Kd3 {[%clk 0:00:05]} 58. Rg8 {[%clk 0:00:05]}  e3 {[%clk 0:00:06]} 59. Rd8+ {[%clk 0:00:05]}  Ke2 {[%clk 0:00:06]} 60. Kg2 {[%clk 0:00:06]}  Rg6 {[%clk 0:00:06]} 61. Rd7 {[%clk 0:00:06]}  Rf6 {[%clk 0:00:06]} 62. g4 {[%clk 0:00:05]}  Rf2+ {[%clk 0:00:06]} 63. Kg3 {[%clk 0:00:05]}  Kf1 {[%clk 0:00:05]} 64. g5 {[%clk 0:00:05]}  e2 {[%clk 0:00:04]} 65. Re7 {[%clk 0:00:05]}  Rg2+ {[%clk 0:00:03]} 66. Kf4 {[%clk 0:00:05]}  Kf2 {[%clk 0:00:03]} 67. Kf5 {[%clk 0:00:04]}  Rg3 {[%clk 0:00:04]} 68. Rxe2+ {[%clk 0:00:04]}  Kxe2 {[%clk 0:00:05]} 69. g6 {[%clk 0:00:04]}  Ke3 {[%clk 0:00:05]} 70. Kf6 {[%clk 0:00:05]}  Ke4 {[%clk 0:00:06]} 71. g7 {[%clk 0:00:05]}  Kd5 {[%clk 0:00:06]} 72. Kf7 {[%clk 0:00:06]}  Rf3+ {[%clk 0:00:07]} 73. Ke7 {[%clk 0:00:06]}  Rg3 {[%clk 0:00:07]} 74. Kf7 {[%clk 0:00:06]}  Rxg7+ {[%clk 0:00:07]} 75. Kxg7 {[%clk 0:00:07]} 1/2-1/2


[Site "https://www.chess.com"]

[Event "Titled Tuesday Blitz January 31 Early 2023"]
[White "Md, Imran"]
[Black "Galchenko, Matvey"]
[WhiteFideId "25748580"]
[BlackFideId "24175480"]
[WhiteElo "2284"]
[BlackElo "2438"]
[Result "1/2-1/2"]
[Round "06"]
[TimeControl "180+2"]
[Date "2023.01.31"]
[WhiteClock "0:01:47"]
[BlackClock "0:01:22"]

1. Nf3 {[%clk 0:02:53]}  c5 {[%clk 0:02:58]} 2. e4 {[%clk 0:02:51]}  g6 {[%clk 0:02:58]} 3. d4 {[%clk 0:02:47]}  cxd4 {[%clk 0:02:59]} 4. Qxd4 {[%clk 0:02:42]}  Nf6 {[%clk 0:02:58]} 5. Nc3 {[%clk 0:02:37]}  Nc6 {[%clk 0:02:57]} 6. Qa4 {[%clk 0:02:34]}  d6 {[%clk 0:02:57]} 7. e5 {[%clk 0:02:32]}  dxe5 {[%clk 0:02:58]} 8. Nxe5 {[%clk 0:02:31]}  Bd7 {[%clk 0:02:58]} 9. Nxd7 {[%clk 0:02:29]}  Nxd7 {[%clk 0:02:58]} 10. Be3 {[%clk 0:02:27]}  Bg7 {[%clk 0:02:55]} 11. Qa3 {[%clk 0:02:27]}  O-O {[%clk 0:02:44]} 12. O-O-O {[%clk 0:02:26]}  Qc8 {[%clk 0:02:38]} 13. Kb1 {[%clk 0:02:23]}  Nde5 {[%clk 0:02:23]} 14. Be2 {[%clk 0:02:12]}  Ng4 {[%clk 0:02:17]} 15. Bc5 {[%clk 0:02:04]}  b6 {[%clk 0:02:05]} 16. h3 {[%clk 0:02:03]}  Nge5 {[%clk 0:01:36]} 17. Be3 {[%clk 0:02:00]}  Na5 {[%clk 0:01:36]} 18. Nd5 {[%clk 0:01:57]}  Kh8 {[%clk 0:01:29]} 19. Qxe7 {[%clk 0:01:53]}  Nec4 {[%clk 0:01:22]} 20. Bd4 {[%clk 0:01:47]} 1/2-1/2


[Site "https://www.chess.com"]

[Event "Titled Tuesday Blitz January 31 Early 2023"]
[White "Pulpan, Jakub"]
[Black "Cella, Glaucio Dalla Cortt"]
[WhiteFideId "302759"]
[BlackFideId "2119455"]
[WhiteElo "2427"]
[BlackElo "1894"]
[Result "1-0"]
[Round "06"]
[TimeControl "180+2"]
[Date "2023.01.31"]
[WhiteClock "0:01:38"]
[BlackClock "0:00:17"]

1. d4 {[%clk 0:02:49]}  c5 {[%clk 0:03:00]} 2. d5 {[%clk 0:02:41]}  Nf6 {[%clk 0:03:01]} 3. Nc3 {[%clk 0:02:39]}  d6 {[%clk 0:03:02]} 4. e4 {[%clk 0:02:39]}  g6 {[%clk 0:03:03]} 5. Bb5+ {[%clk 0:02:39]}  Bd7 {[%clk 0:03:02]} 6. a4 {[%clk 0:02:40]}  Bg7 {[%clk 0:03:01]} 7. Nf3 {[%clk 0:02:40]}  a6 {[%clk 0:03:02]} 8. Be2 {[%clk 0:02:40]}  O-O {[%clk 0:03:02]} 9. Nd2 {[%clk 0:02:40]}  e5 {[%clk 0:03:02]} 10. Nc4 {[%clk 0:02:37]}  Qc7 {[%clk 0:02:52]} 11. a5 {[%clk 0:02:35]}  Bb5 {[%clk 0:02:47]} 12. O-O {[%clk 0:02:19]}  Bxc4 {[%clk 0:02:46]} 13. Bxc4 {[%clk 0:02:18]}  Nbd7 {[%clk 0:02:44]} 14. b3 {[%clk 0:02:12]}  b5 {[%clk 0:02:44]} 15. axb6 {[%clk 0:02:11]}  Qxb6 {[%clk 0:02:45]} 16. Qe2 {[%clk 0:02:10]}  a5 {[%clk 0:02:35]} 17. Bd2 {[%clk 0:02:06]}  Ra7 {[%clk 0:02:28]} 18. Ra2 {[%clk 0:02:01]}  Rfa8 {[%clk 0:02:03]} 19. Rfa1 {[%clk 0:01:58]}  a4 {[%clk 0:01:45]} 20. Rxa4 {[%clk 0:01:57]}  Rxa4 {[%clk 0:01:45]} 21. Rxa4 {[%clk 0:01:58]}  Rxa4 {[%clk 0:01:45]} 22. Nxa4 {[%clk 0:01:59]}  Qc7 {[%clk 0:01:42]} 23. f3 {[%clk 0:01:57]}  Nb6 {[%clk 0:01:42]} 24. Ba5 {[%clk 0:01:56]}  Nfd7 {[%clk 0:01:42]} 25. Bb5 {[%clk 0:01:56]}  Qa7 {[%clk 0:01:37]} 26. Nxb6 {[%clk 0:01:48]}  Nxb6 {[%clk 0:01:34]} 27. Be1 {[%clk 0:01:48]}  Qa1 {[%clk 0:01:28]} 28. g3 {[%clk 0:01:47]}  Bh6 {[%clk 0:01:26]} 29. Kg2 {[%clk 0:01:46]}  f5 {[%clk 0:01:16]} 30. Bd3 {[%clk 0:01:45]}  fxe4 {[%clk 0:00:56]} 31. Bxe4 {[%clk 0:01:46]}  Qc1 {[%clk 0:00:53]} 32. Bf2 {[%clk 0:01:43]}  Bd2 {[%clk 0:00:51]} 33. Qb5 {[%clk 0:01:43]}  Be3 {[%clk 0:00:28]} 34. Bxe3 {[%clk 0:01:41]}  Qxe3 {[%clk 0:00:28]} 35. Qxb6 {[%clk 0:01:41]}  Qe2+ {[%clk 0:00:28]} 36. Kh3 {[%clk 0:01:42]}  Qf1+ {[%clk 0:00:29]} 37. Kh4 {[%clk 0:01:42]}  Kg7 {[%clk 0:00:22]} 38. Qc7+ {[%clk 0:01:41]}  Kh6 {[%clk 0:00:22]} 39. Qe7 {[%clk 0:01:40]}  Qc1 {[%clk 0:00:17]} 40. Qf8# {[%clk 0:01:38]} 1-0


[Site "https://www.chess.com"]

[Event "Titled Tuesday Blitz January 31 Early 2023"]
[White "Boros, Denes"]
[Black "Indjic, Aleksandar"]
[WhiteFideId "722340"]
[BlackFideId "911925"]
[WhiteElo "2406"]
[BlackElo "2618"]
[Result "1-0"]
[Round "06"]
[TimeControl "180+2"]
[Date "2023.01.31"]
[WhiteClock "0:00:47"]
[BlackClock "0:00:14"]

1. e4 {[%clk 0:03:00]}  c5 {[%clk 0:02:56]} 2. Nf3 {[%clk 0:03:00]}  d6 {[%clk 0:02:57]} 3. Bc4 {[%clk 0:03:00]}  e6 {[%clk 0:02:56]} 4. O-O {[%clk 0:02:59]}  Nc6 {[%clk 0:02:57]} 5. Re1 {[%clk 0:02:55]}  g5 {[%clk 0:02:56]} 6. d4 {[%clk 0:02:45]}  g4 {[%clk 0:02:56]} 7. d5 {[%clk 0:02:46]}  gxf3 {[%clk 0:02:56]} 8. dxc6 {[%clk 0:02:44]}  fxg2 {[%clk 0:02:53]} 9. cxb7 {[%clk 0:02:39]}  Bxb7 {[%clk 0:02:54]} 10. Bb5+ {[%clk 0:02:32]}  Ke7 {[%clk 0:02:54]} 11. Bg5+ {[%clk 0:02:27]}  f6 {[%clk 0:02:55]} 12. Bh4 {[%clk 0:02:22]}  Bg7 {[%clk 0:02:47]} 13. Nc3 {[%clk 0:02:22]}  Nh6 {[%clk 0:02:41]} 14. Re3 {[%clk 0:02:10]}  Rg8 {[%clk 0:02:31]} 15. Qh5 {[%clk 0:02:04]}  Nf7 {[%clk 0:02:26]} 16. Rae1 {[%clk 0:02:02]}  Kf8 {[%clk 0:02:21]} 17. Bc4 {[%clk 0:01:54]}  Qe7 {[%clk 0:02:20]} 18. f4 {[%clk 0:01:53]}  Qd7 {[%clk 0:02:09]} 19. f5 {[%clk 0:01:46]}  exf5 {[%clk 0:01:54]} 20. exf5 {[%clk 0:01:43]}  Ne5 {[%clk 0:01:54]} 21. Be6 {[%clk 0:01:32]}  Qe8 {[%clk 0:01:51]} 22. Qd1 {[%clk 0:01:26]}  Rd8 {[%clk 0:01:44]} 23. Nd5 {[%clk 0:01:24]}  Bh6 {[%clk 0:00:32]} 24. Bxg8 {[%clk 0:01:13]}  Bxe3+ {[%clk 0:00:30]} 25. Rxe3 {[%clk 0:01:14]}  Qb5 {[%clk 0:00:24]} 26. Be6 {[%clk 0:00:57]}  Ba6 {[%clk 0:00:22]} 27. Kxg2 {[%clk 0:00:53]}  Nc4 {[%clk 0:00:14]} 28. Rg3 {[%clk 0:00:50]}  Nxb2 {[%clk 0:00:14]} 29. Rg8# {[%clk 0:00:47]} 1-0


[Site "https://www.chess.com"]

[Event "Titled Tuesday Blitz January 31 Early 2023"]
[White "Biastoch, Bennet"]
[Black "Svane, Rasmus"]
[WhiteFideId "12939889"]
[BlackFideId "4657101"]
[WhiteElo "2257"]
[BlackElo "2623"]
[Result "0-1"]
[Round "06"]
[TimeControl "180+2"]
[Date "2023.01.31"]
[WhiteClock "0:00:27"]
[BlackClock "0:01:46"]

1. e4 {[%clk 0:03:00]}  c6 {[%clk 0:02:59]} 2. Nc3 {[%clk 0:03:00]}  d5 {[%clk 0:03:00]} 3. Nf3 {[%clk 0:03:01]}  dxe4 {[%clk 0:03:00]} 4. Nxe4 {[%clk 0:03:02]}  Nf6 {[%clk 0:03:01]} 5. Qe2 {[%clk 0:03:01]}  Nxe4 {[%clk 0:02:58]} 6. Qxe4 {[%clk 0:03:02]}  Qa5 {[%clk 0:02:58]} 7. Bc4 {[%clk 0:02:57]}  Bf5 {[%clk 0:02:56]} 8. Qe2 {[%clk 0:02:51]}  e6 {[%clk 0:02:57]} 9. O-O {[%clk 0:02:46]}  Be7 {[%clk 0:02:56]} 10. b3 {[%clk 0:02:42]}  O-O {[%clk 0:02:56]} 11. Bb2 {[%clk 0:02:39]}  Nd7 {[%clk 0:02:56]} 12. h3 {[%clk 0:02:32]}  Rad8 {[%clk 0:02:55]} 13. a4 {[%clk 0:02:29]}  Rfe8 {[%clk 0:02:54]} 14. Rfe1 {[%clk 0:02:29]}  Bf6 {[%clk 0:02:52]} 15. Bxf6 {[%clk 0:02:25]}  Nxf6 {[%clk 0:02:53]} 16. Rad1 {[%clk 0:02:21]}  Bxc2 {[%clk 0:02:52]} 17. Rc1 {[%clk 0:02:14]}  Be4 {[%clk 0:02:52]} 18. Red1 {[%clk 0:01:57]}  Bxf3 {[%clk 0:02:47]} 19. Qxf3 {[%clk 0:01:58]}  Rxd2 {[%clk 0:02:46]} 20. Rxd2 {[%clk 0:01:54]}  Qxd2 {[%clk 0:02:47]} 21. Rd1 {[%clk 0:01:55]}  Qb4 {[%clk 0:02:47]} 22. g4 {[%clk 0:01:49]}  h6 {[%clk 0:02:47]} 23. h4 {[%clk 0:01:48]}  Qc5 {[%clk 0:02:45]} 24. Qg3 {[%clk 0:01:41]}  Qe7 {[%clk 0:02:30]} 25. f3 {[%clk 0:01:26]}  Rd8 {[%clk 0:02:27]} 26. Rxd8+ {[%clk 0:01:26]}  Qxd8 {[%clk 0:02:28]} 27. g5 {[%clk 0:01:27]}  hxg5 {[%clk 0:02:27]} 28. hxg5 {[%clk 0:01:28]}  Nh5 {[%clk 0:02:26]} 29. Qg4 {[%clk 0:01:25]}  g6 {[%clk 0:02:26]} 30. a5 {[%clk 0:01:20]}  Qxa5 {[%clk 0:02:23]} 31. f4 {[%clk 0:01:11]}  Qe1+ {[%clk 0:02:17]} 32. Kg2 {[%clk 0:01:11]}  Qd2+ {[%clk 0:02:17]} 33. Kf3 {[%clk 0:01:11]}  b5 {[%clk 0:02:17]} 34. Bxe6 {[%clk 0:01:06]}  fxe6 {[%clk 0:02:07]} 35. Qxe6+ {[%clk 0:01:07]}  Kh7 {[%clk 0:02:07]} 36. Qf7+ {[%clk 0:01:00]}  Ng7 {[%clk 0:02:08]} 37. Qxa7 {[%clk 0:00:57]}  Qd3+ {[%clk 0:02:05]} 38. Kg4 {[%clk 0:00:57]}  Qd1+ {[%clk 0:02:04]} 39. Kg3 {[%clk 0:00:55]}  Qxb3+ {[%clk 0:02:03]} 40. Kg4 {[%clk 0:00:55]}  Qe6+ {[%clk 0:02:03]} 41. Kf3 {[%clk 0:00:55]}  b4 {[%clk 0:02:02]} 42. Qb6 {[%clk 0:00:51]}  b3 {[%clk 0:02:02]} 43. Kg3 {[%clk 0:00:48]}  Qd5 {[%clk 0:01:59]} 44. Qb7 {[%clk 0:00:42]}  Qd3+ {[%clk 0:01:55]} 45. Kg4 {[%clk 0:00:42]}  Qe2+ {[%clk 0:01:56]} 46. Kg3 {[%clk 0:00:42]}  b2 {[%clk 0:01:55]} 47. f5 {[%clk 0:00:40]}  Qd3+ {[%clk 0:01:49]} 48. Kh4 {[%clk 0:00:39]}  b1=Q {[%clk 0:01:48]} 49. Qxc6 {[%clk 0:00:28]}  Nxf5+ {[%clk 0:01:46]} 50. Kg4 {[%clk 0:00:27]}  Qg3# {[%clk 0:01:46]} 0-1


[Site "https://www.chess.com"]

[Event "Titled Tuesday Blitz January 31 Early 2023"]
[White "Praggnanandhaa R"]
[Black "Belozerov, Andrei"]
[WhiteFideId "25059530"]
[BlackFideId "4120213"]
[WhiteElo "2688"]
[BlackElo "2461"]
[Result "0-1"]
[Round "06"]
[TimeControl "180+2"]
[Date "2023.01.31"]
[WhiteClock "0:02:13"]
[BlackClock "0:01:39"]

1. e3 {[%clk 0:03:00]}  c5 {[%clk 0:02:56]} 2. c4 {[%clk 0:03:01]}  g6 {[%clk 0:02:54]} 3. d4 {[%clk 0:03:01]}  cxd4 {[%clk 0:02:51]} 4. exd4 {[%clk 0:03:02]}  Bg7 {[%clk 0:02:50]} 5. Nc3 {[%clk 0:03:02]}  Nf6 {[%clk 0:02:50]} 6. d5 {[%clk 0:03:02]}  O-O {[%clk 0:02:49]} 7. Nf3 {[%clk 0:03:02]}  d6 {[%clk 0:02:45]} 8. Be2 {[%clk 0:03:03]}  e6 {[%clk 0:02:45]} 9. dxe6 {[%clk 0:03:04]}  Bxe6 {[%clk 0:02:45]} 10. O-O {[%clk 0:03:05]}  Nc6 {[%clk 0:02:45]} 11. Be3 {[%clk 0:03:04]}  Ng4 {[%clk 0:02:40]} 12. Bg5 {[%clk 0:03:04]}  Qb6 {[%clk 0:02:34]} 13. Qd2 {[%clk 0:03:04]}  h6 {[%clk 0:02:28]} 14. Bf4 {[%clk 0:03:00]}  Rad8 {[%clk 0:02:25]} 15. Rad1 {[%clk 0:03:00]}  g5 {[%clk 0:02:21]} 16. Bxd6 {[%clk 0:02:50]}  Rxd6 {[%clk 0:02:16]} 17. Qxd6 {[%clk 0:02:41]}  Qxb2 {[%clk 0:02:16]} 18. Nxg5 {[%clk 0:02:36]}  hxg5 {[%clk 0:02:08]} 19. Bxg4 {[%clk 0:02:27]}  Bxg4 {[%clk 0:02:08]} 20. Rd5 {[%clk 0:02:24]}  Qxc3 {[%clk 0:02:00]} 21. Rxg5 {[%clk 0:02:24]}  Be2 {[%clk 0:01:57]} 22. Rb1 {[%clk 0:02:20]}  Rd8 {[%clk 0:01:51]} 23. Qh6 {[%clk 0:02:13]}  Bd3 {[%clk 0:01:39]} 24. Rd1 {[%clk 0:02:13]}  Bg6 {[%clk 0:01:39]} 0-1


[Site "https://www.chess.com"]